Cogmind - Beta 15 @@@ ROGUE MODE // 2025.08.17 @ 03:05:58 Player: shapeshifter Result: Escaped! Performance ------------- Evolutions (9) 4500 Regions Visited (22) 4400 Robots Destroyed (35) 175 Value Destroyed (1394) 1394 Prototype IDs (49) 980 Alien Tech Used (2) 400 Bonus (4900) 4900 TOTAL SCORE: 16749 Bonus ------- Entered DSFs 1000 Aligned with FarCom 300 Met Data Miner 300 Met Zhirov 300 Win 3000 Cogmind --------- Core Integrity 976/1600 Matter 3/300 Energy 345/350 System Corruption 15% Temperature Cool (13) Movement Walking (140) Location To Epsilon Eridani Parts ------- > --- POWER (3) -------- Quantum Reactor > --- PROPULSION (10) -- Heavy Armored Exoskeleton > --- UTILITY (10) ----- Large Storage Unit Hacking Suite Hacking Suite Hacking Suite > --- WEAPON (2) ------- Compact HERF Cannon > --- INVENTORY (15) --- Advanced Power Amplifier Long-range Terrain Scanner Advanced ECM Suite Improved Focal Shield Hypervelocity Railgun Hypervelocity Railgun Peak State ------------ > --- POWER ------------ Light Antimatter Reactor Light Particle Reactor Light Particle Reactor > --- PROPULSION ------- Gravmag Array Antigrav System Linear Gravjet Linear Gravjet Linear Gravjet Improved Antigrav System Improved Gyrokinetic Inverter Improved Gyrokinetic Inverter > --- UTILITY ---------- Advanced Power Amplifier Advanced Cooling System Large Storage Unit Advanced Signal Interpreter Advanced Reaction Control System Hacking Suite Hacking Suite Hacking Suite Hacking Suite Advanced Corruption Screen > --- WEAPON ----------- Mini Smartbomb Launcher Enhanced Force Lance > --- INVENTORY -------- Light Particle Reactor Heavy Armored Exoskeleton Antigrav Array Long-range Terrain Scanner Advanced ECM Suite Advanced Reaction Control System Advanced Reaction Control System Improved Focal Shield Compact HERF Cannon Hypervelocity Railgun Hypervelocity Railgun [Rating: 150] Favorites ----------- Power F-cell Engine Engine F-cell Engine Power Core Light Nuclear Core Reactor Light Particle Reactor Propulsion Linear Gravjet Treads Light Treads Leg Improved Titanium Leg Wheel Compact Wheel Hover Unit Linear Gravjet Utility Hacking Suite Device Improved Sensor Array Storage Lightpack 2.0 Processor Improved Signal Interpreter Hackware Hacking Suite Protection Improved Medium Armor Plating Weapon EM Pulse Gun Energy Gun EM Pulse Gun Energy Cannon Compact HERF Cannon Ballistic Gun Enhanced Autogun Ballistic Cannon Gauss Cannon Launcher Shock Bomb Launcher Slashing Weapon Power Sword Piercing Weapon Enhanced Force Lance Build | -11 -10 -10 -10 -9 -8 -7 -6 -6 -6 -6 -5 -5 -5 -5 -5 -4 -4 -4 -3 -2 -2 -1 ------- Run | Yrd Mat Min Exi Min Mat Fac Fac Low Low Dat Pro Fac Upp Upp Zhi Pro Fac DSF Res Res DSF Acc Slots Evolved 18 | . . . . . 4 2 2 . . . . 2 . . . . 2 . 2 2 . 2 Power 2 | . . . . . . . . . . . . 1 . . . . . . . 1 . . Propulsion 8 | . . . . . . . . . . . . 1 . . . . 2 . 2 1 . 2 Utility 8 | . . . . . 4 2 2 . . . . . . . . . . . . . . . Weapon . | . . . . . . . . . . . . . . . . . . . . . . . Parts Attached 105 | 7 . . 1 1 8 14 3 1 . . 8 6 3 1 4 2 8 2 17 . 5 14 Power 14 | 1 . . . . 1 2 . . . . 1 2 . 1 1 . . . 2 . . 3 Engine 4 | 1 . . . . 1 . . . . . . 2 . . . . . . . . . . Core 4 | . . . . . . 2 . . . . 1 . . 1 . . . . . . . . Reactor 6 | . . . . . . . . . . . . . . . 1 . . . 2 . . 3 Propulsion 27 | 2 . . . . 1 6 . . . . 1 1 . . . 2 5 . 4 . . 5 Treads 3 | 2 . . . . 1 . . . . . . . . . . . . . . . . . Leg 7 | . . . . . . 2 . . . . 1 1 . . . 1 . . . . . 2 Wheel 2 | . . . . . . 2 . . . . . . . . . . . . . . . . Hover 15 | . . . . . . 2 . . . . . . . . . 1 5 . 4 . . 3 Flight . | . . . . . . . . . . . . . . . . . . . . . . . Utility 46 | 2 . . 1 1 4 4 3 1 . . 2 2 3 . 2 . 3 2 9 . 5 2 Device 27 | 1 . . 1 . 2 2 1 1 . . 1 2 3 . 2 . 1 1 5 . 2 2 Storage 3 | 1 . . . . 1 . . . . . . . . . . . . 1 . . . . Processor 8 | . . . . 1 . 1 1 . . . . . . . . . 2 . 3 . . . Hackware 6 | . . . . . 1 1 . . . . . . . . . . . . 1 . 3 . Protection 2 | . . . . . . . 1 . . . 1 . . . . . . . . . . . Artifact . | . . . . . . . . . . . . . . . . . . . . . . . Weapon 18 | 2 . . . . 2 2 . . . . 4 1 . . 1 . . . 2 . . 4 Energy Gun 4 | 2 . . . . 1 . . . . . . 1 . . . . . . . . . . Energy Cannon 1 | . . . . . . . . . . . . . . . . . . . . . . 1 Ballistic Gun 3 | . . . . . . 1 . . . . . . . . . . . . . . . 2 Ballistic Cannon 3 | . . . . . 1 1 . . . . 1 . . . . . . . . . . . Launcher 3 | . . . . . . . . . . . 2 . . . . . . . . . . 1 Special Weapon . | . . . . . . . . . . . . . . . . . . . . . . . Impact Weapon . | . . . . . . . . . . . . . . . . . . . . . . . Slashing Weapon 3 | . . . . . . . . . . . 1 . . . 1 . . . 1 . . . Piercing Weapon 1 | . . . . . . . . . . . . . . . . . . . 1 . . . Special Melee Weapon . | . . . . . . . . . . . . . . . . . . . . . . . Unidentified Prototypes 8 | . . . . . . 2 . . . . . 2 . . 2 1 . . . . . 1 Parts Lost 66 | . . . . 2 . 3 . . . . 17 1 1 5 . 10 . 1 1 . 1 24 Power 10 | . . . . . . . . . . . 3 . . 2 . 1 . . . . . 4 Propulsion 22 | . . . . . . 1 . . . . 4 . . . . 4 . . 1 . . 12 Utility 23 | . . . . 1 . 1 . . . . 6 1 1 2 . 4 . 1 . . . 6 Weapon 11 | . . . . 1 . 1 . . . . 4 . . 1 . 1 . . . . 1 2 Highest Loss Streak 19 | . . . . 2 . 3 . . . . 8 1 1 3 . 9 . 1 1 . 1 19 To Critical Strikes 1 | . . . . . . . . . . . . . . . . . . . . . . 1 Average Backups 18 | 5 7 8 7 6 12 26 23 27 28 28 24 24 26 28 28 18 4 4 12 12 11 9 Power 1 | . 1 1 . . . 2 3 3 3 3 1 . 1 . . . . . . . 1 . Propulsion 3 | 2 4 4 2 2 2 5 4 4 4 4 4 2 4 4 3 1 . 1 3 4 3 1 Utility 9 | . 1 2 3 3 5 8 10 13 13 13 11 16 18 18 19 13 3 3 6 5 4 4 Weapon 3 | 1 1 1 1 1 3 8 5 6 6 6 6 3 2 3 3 1 . . 2 3 2 3 Tool/Special . | . . . . . . . . . . . . . . . . . . . . . . . Unused Backups 61 | . . . 5 . . 7 9 1 . . 4 5 . 1 1 15 . 2 4 . 4 3 Power 6 | . . . 1 . . . . . . . 1 1 . . . 1 . . 1 . 1 . Propulsion 6 | . . . 2 . . 1 . . . . . . . 1 1 . . . 1 . . . Utility 35 | . . . 2 . . 2 6 1 . . 2 1 . . . 12 . 2 2 . 2 3 Weapon 12 | . . . . . . 4 2 . . . 1 3 . . . 1 . . . . 1 . Tool/Special 2 | . . . . . . . 1 . . . . . . . . 1 . . . . . . Average Slot Usage (%) 73 | . 100 100 100 94 71 74 85 86 86 86 79 55 56 51 40 36 21 45 62 69 74 60 Engine 5 | . 14 14 14 14 9 2 . . . . 2 9 10 8 . . . . . . . . Core 2 | . . . . . . 4 6 6 6 6 2 . . . 5 3 . . . . . . Treads 5 | . 28 28 28 28 18 . . . . . . . . . . . . . . . . . Leg 5 | . . . . . . 8 13 13 13 13 12 4 5 5 5 3 . . . . . 1 Hover 3 | . . . . . . 4 . . . . . . . . . . 5 26 28 26 27 19 Device 14 | . 14 14 14 9 7 12 20 20 20 20 16 14 20 18 12 12 . 3 4 8 9 6 Storage 6 | . 14 14 14 14 9 7 6 6 6 6 6 5 5 5 5 3 . 1 4 4 4 4 Processor 7 | . . . . 1 9 8 6 13 13 13 13 10 5 5 5 5 11 8 9 13 11 5 Hackware 6 | . . . . . . 14 13 13 13 13 9 . . . . . . . 3 4 9 14 Energy Gun 6 | . 28 28 28 25 12 2 . . . . . . 5 2 . . . . . . . . Ballistic Gun 2 | . . . . . . 4 6 6 6 6 4 3 . . . . . . . . . . Ballistic Cannon 2 | . . . . . 5 . 6 6 6 6 5 . . . . . . . . . . . Slashing Weapon 1 | . . . . . . . . . . . . 5 5 5 6 6 5 5 4 4 2 . Peak Build Rating 150 | 7 8 8 12 12 50 76 89 88 85 85 90 131 134 133 131 138 52 65 108 108 127 150 Average Rating 76 | 4 7 8 9 11 43 64 85 84 85 85 82 125 132 127 117 80 27 51 85 108 113 103 On Entrance 66 | . 7 8 8 12 9 50 74 88 85 85 85 65 128 133 111 131 11 52 46 108 108 127 Naked Turns . | . . . . . . . . . . . . . . . . . . . . . . . Heaviest Build 76 | 15 15 15 15 15 23 23 31 23 23 23 33 55 57 57 36 51 6 26 58 54 62 76 Greatest Support 150 | 40 40 40 40 40 40 40 35 35 35 35 35 90 90 90 90 90 36 27 65 65 65 150 Greatest Overweight (x) 4 | . . . . . . 1 . . . . 2 . . . . 4 1 . 1 . . . Average Overweight (x) . | . . . . . . . . . . . . . . . . . . . . . . . Largest Inventory Capacity 40 | 8 8 8 8 8 40 40 40 40 40 40 40 40 40 40 40 40 5 15 15 15 15 15 Average Capacity 29 | 7 8 8 8 8 40 40 40 40 40 40 40 40 40 40 40 26 5 8 15 15 15 15 Most Carried 36 | 8 8 8 8 8 20 36 30 32 32 32 33 30 29 30 31 29 5 10 15 15 15 15 Average Carried 20 | 5 7 8 7 8 12 27 25 30 32 32 28 24 27 29 28 18 4 5 14 15 14 11 Final Capacity 40 | 8 8 8 8 8 40 40 40 40 40 40 40 40 40 40 40 5 5 15 15 15 15 15 Final Carried 32 | 7 8 8 8 8 20 29 30 32 32 32 21 30 29 29 28 5 4 10 15 15 15 6 Class Distribution -------------------- 33% | Hauler-Skirmisher 21% | Hauler-Mutant 19% | Mutant 8% | Hauler-Assassin 6% | Sprinter 4% | Hacker-Sprinter 3% | Hacker-Mutant Dominant Class ---------------- Mutant | -10/Materials Mutant | -10/Mines Mutant | -10/Exiles Skirmisher | -9/Mines Hauler-Skirmisher | -8/Materials Hauler-Mutant | -7/Factory Hauler-Skirmisher | -6/Factory Hauler-Skirmisher | -6/Lower Caves Hauler-Skirmisher | -6/Lower Caves Hauler-Skirmisher | -6/Data Miner Hauler-Skirmisher | -5/Proximity Caves Hauler-Assassin | -5/Factory Hauler-Mutant | -5/Upper Caves Hauler-Mutant | -5/Upper Caves Hauler-Mutant | -5/Zhirov Hauler-Mutant | -4/Proximity Caves Hauler-Mutant | -4/Factory Hauler-Mutant | -4/DSF Sprinter | -3/Research Sprinter | -2/Research Sprinter | -2/DSF Hacker-Mutant | -1/Access Resources | -11 -10 -10 -10 -9 -8 -7 -6 -6 -6 -6 -5 -5 -5 -5 -5 -4 -4 -4 -3 -2 -2 -1 ----------- Run | Yrd Mat Min Exi Min Mat Fac Fac Low Low Dat Pro Fac Upp Upp Zhi Pro Fac DSF Res Res DSF Acc Matter Collected 1925 | 280 . . 50 . 138 156 . 15 116 . 621 48 80 28 . 85 . . . . 243 65 Remotely . | . . . . . . . . . . . . . . . . . . . . . . . Salvage Created 1230 | 142 56 . . 30 152 99 31 24 36 . 444 25 54 57 . . . . . . . 80 Parts 54 | 9 5 . . . 6 2 2 . 4 . 10 3 4 4 . . . . . . . 5 Haulers Intercepted . | . . . . . . . . . . . . . . . . . . . . . . . Recyclers Shooed 1 | . . . . . . . . . . . . . . . . . . . . . . 1 Parts Field Recycled . | . . . . . . . . . . . . . . . . . . . . . . . Retrieved Matter . | . . . . . . . . . . . . . . . . . . . . . . . Parts Self-Destructed 38 | . . . . . . . . 1 4 . 7 . 4 10 . 12 . . . . . . Prevented 4 | . . . . . . . . . . . 3 . . 1 . . . . . . . . Kills | -11 -10 -10 -10 -9 -8 -7 -6 -6 -6 -6 -5 -5 -5 -5 -5 -4 -4 -4 -3 -2 -2 -1 ------- Run | Yrd Mat Min Exi Min Mat Fac Fac Low Low Dat Pro Fac Upp Upp Zhi Pro Fac DSF Res Res DSF Acc Combat Hostiles Destroyed 31 | . 3 . . 3 3 3 1 1 1 . 11 . 2 1 . . . . . . . 2 Melee 2 | . . . . . . . . . . . 1 . . 1 . . . . . . . . Guns 17 | . 3 . . 3 2 2 . . . . 5 . 2 . . . . . . . . . Cannons 6 | . . . . . . 1 1 1 1 . 2 . . . . . . . . . . . AOE 5 | . . . . . 1 . . . . . 2 . . . . . . . . . . 2 Classes Destroyed 14 | 2 1 . . 1 2 1 1 . 1 . 3 1 . . . . . . . . . 1 Builder 2 | . . . . . . . . . . . . 1 . . . . . . . . . 1 Tunneler 3 | 3 . . . . . . . . . . . . . . . . . . . . . . Recycler 1 | 1 . . . . . . . . . . . . . . . . . . . . . . Operator 1 | . . . . . . . . . . . . . . . . . . . . . . 1 Drone 2 | . . . . . . . . . . . 2 . . . . . . . . . . . Swarmer 6 | . 3 . . . . . . 1 . . . . 2 . . . . . . . . . Grunt 8 | . . . . . 2 2 . . . . 4 . . . . . . . . . . . Brawler 1 | . . . . . . . . . . . 1 . . . . . . . . . . . Duelist 1 | . . . . . . 1 . . . . . . . . . . . . . . . . Sentry 2 | . . . . . 1 . . . . . 1 . . . . . . . . . . . Demolisher 3 | . . . . . . . . . . . 3 . . . . . . . . . . . Hunter 1 | . . . . . . . 1 . . . . . . . . . . . . . . . Programmer 4 | . . . . . . . . . 1 . . . . 1 . . . . . . . 2 Assembled 3 | . . . . 3 . . . . . . . . . . . . . . . . . . Best Kill Streak 3 | 2 3 . . 2 2 2 1 1 1 . 3 1 2 1 . . . . . . . 3 Combat Bots Only 3 | . 3 . . 2 2 2 1 1 1 . 3 . 2 1 . . . . . . . 2 Max Kills in Single Turn 2 | 1 2 . . 1 1 1 1 1 1 . 2 1 1 1 . . . . . . . 1 Gunslinging 1 | . 1 . . . . . . . . . . . . . . . . . . . . . Exploded 2 | . . . . . 1 . . . . . 2 . . . . . . . . . . 1 Melee 1 | . . . . . . . . . . . 1 . . 1 . . . . . . . . Uniques/NPCs Destroyed . | . . . . . . . . . . . . . . . . . . . . . . . Combat | -11 -10 -10 -10 -9 -8 -7 -6 -6 -6 -6 -5 -5 -5 -5 -5 -4 -4 -4 -3 -2 -2 -1 -------- Run | Yrd Mat Min Exi Min Mat Fac Fac Low Low Dat Pro Fac Upp Upp Zhi Pro Fac DSF Res Res DSF Acc Hostile Shots Fired 956 | . 11 . . 10 9 7 9 15 2 . 83 25 60 155 . 187 . 11 12 . 7 353 Missed 384 | . 2 . . 2 1 4 1 9 2 . 26 5 26 76 . 77 . 3 4 . 5 141 Intercepted 1 | . . . . . . . . . . . . . . . . . . 1 . . . . Hits 572 | . 9 . . 8 8 3 8 6 . . 57 20 34 79 . 110 . 8 8 . 2 212 Melee 8 | . . . . . . . . . . . 1 . 2 . . . . 5 . . . . Projectile 564 | . 9 . . 8 8 3 8 6 . . 56 20 32 79 . 110 . 3 8 . 2 212 AOE 29 | . . . . . . . . . . . 26 . . . . . . 2 . . . 1 Critical Strikes 30 | . . . . 1 . . . 1 . . 2 1 . 5 . 6 . 1 . . . 13 Part Disruptions 1 | . . . . . . . . . . . . . . . . . . . . . . 1 Damage Taken 11277 | . 74 . . 99 121 223 96 65 . . 2093 173 315 1153 . 1790 . 208 186 . 91 4590 Core 1966 | . 8 . . 19 . 18 . 24 . . 432 27 41 181 . 444 . 95 . . 53 624 Absorbed by Shields 1271 | . . . . . . . . . . . . 184 331 397 . 359 . . . . . . Redirected to Shielding 50 | . . . . . . . . . . . 50 . . . . . . . . . . . Ignored by Resistances 46 | . . . . . . . 46 . . . . . . . . . . . . . . . Core Remaining (%) 80 | 100 . . . 89 100 97 . . . . 46 . . . . 27 . 91 100 . 96 61 Volleys Fired 150 | 6 6 . . 8 8 22 6 4 1 . 64 4 8 1 . . . . . . . 12 Largest 2 | 2 2 . . 2 2 1 1 1 1 . 2 1 1 1 . . . . . . . 1 Hottest 94 | 80 80 . . 80 77 40 40 40 40 . 76 81 81 81 . . . . . . . 94 Shots Fired 193 | 12 12 . . 11 16 22 6 4 1 . 84 4 8 1 . . . . . . . 12 Gun 106 | 12 12 . . 11 8 17 . . . . 29 4 8 1 . . . . . . . 4 Cannon 69 | . . . . . 8 5 6 4 1 . 44 . . . . . . . . . . 1 Launcher 18 | . . . . . . . . . . . 11 . . . . . . . . . . 7 Special . | . . . . . . . . . . . . . . . . . . . . . . . Kinetic 118 | . . . . . 8 20 6 4 1 . 73 2 . . . . . . . . . 4 Thermal 11 | . . . . . . . . . . . . 2 8 1 . . . . . . . . Explosive 7 | . . . . . . . . . . . . . . . . . . . . . . 7 Electromagnetic 57 | 12 12 . . 11 8 2 . . . . 11 . . . . . . . . . . 1 Robot Hit Streak 8 | 2 3 . . 3 4 8 3 1 2 . 7 1 2 . . . . . . . . 6 Robot Miss Streak 8 | 3 3 . . 1 5 5 1 3 . . 8 2 4 1 . . . . . . . . Penetration Max . | . . . . . . . . . . . . . . . . . . . . . . . Secondary Targets 1 | . 1 . . . . . . . . . . . . . . . . . . . . . Max Gunslinging Chain 1 | . 1 . . . . . . . . . . . . . . . . . . . . . Shots Hit Robots 122 | 5 5 . . 7 11 14 4 1 1 . 54 2 3 6 . 2 . . . . . 7 Core Hits 74 | 4 3 . . 4 8 6 3 . 1 . 31 2 2 2 . . . . . . . 8 Critical Kills . | . . . . . . . . . . . . . . . . . . . . . . . Critical Parts Destroyed 1 | . . . . . . . . . . . 1 . . . . . . . . . . . Critical Strikes 10 | . . . . 1 1 2 . 1 . . 4 . 1 . . . . . . . . . Burn 1 | . . . . . . . . . . . . . 1 . . . . . . . . . Destroy 1 | . . . . . . . . . . . 1 . . . . . . . . . . . Blast 6 | . . . . . . 2 . 1 . . 3 . . . . . . . . . . . Corrupt 2 | . . . . 1 1 . . . . . . . . . . . . . . . . . Melee Attacks 67 | . . . . . . . . . . . 3 4 . 8 . 4 . . 31 . . 17 Impact . | . . . . . . . . . . . . . . . . . . . . . . . Slashing 50 | . . . . . . . . . . . 3 4 . 8 . 4 . . 31 . . . Piercing 17 | . . . . . . . . . . . . . . . . . . . . . . 17 Sneak Attacks 1 | . . . . . . . . . . . . 1 . . . . . . . . . . Combat Hostiles . | . . . . . . . . . . . . . . . . . . . . . . . Follow-up Attacks . | . . . . . . . . . . . . . . . . . . . . . . . Damage Inflicted 3827 | 102 55 . . 76 175 297 83 28 37 . 1699 110 71 244 . 84 . . . . . 766 Guns 918 | 77 55 . . 76 64 179 . . . . 380 16 71 . . . . . . . . . Cannons 975 | . . . . . 82 118 83 28 37 . 627 . . . . . . . . . . . Explosions 1294 | 25 . . . . 29 . . . . . 601 . . . . . . . . . . 639 Melee 604 | . . . . . . . . . . . 91 94 . 244 . 84 . . . . . 91 Ramming 36 | . . . . . . . . . . . . . . . . . . . . . . 36 Kinetic 1550 | . . . . . 82 297 83 28 37 . 1007 16 . . . . . . . . . . Thermal 248 | 25 . . . . 29 . . . . . 123 . 71 . . . . . . . . . Explosive 639 | . . . . . . . . . . . . . . . . . . . . . . 639 Electromagnetic 750 | 77 55 . . 76 64 . . . . . 478 . . . . . . . . . . . Impact . | . . . . . . . . . . . . . . . . . . . . . . . Slashing 513 | . . . . . . . . . . . 91 94 . 244 . 84 . . . . . . Piercing 91 | . . . . . . . . . . . . . . . . . . . . . . 91 Highest Corruption 15 | . . . . . . 1 . . . . . 2 2 10 10 10 . 2 . . . 15 Average Corruption 5 | . . . . . . 1 . . . . . 1 2 4 10 10 . 2 . . . 11 Corruption Purged . | . . . . . . . . . . . . . . . . . . . . . . . Corruption Blocked 5 | . . . . . . . . . . . . . . . . . . . . . . 5 Effects 38 | . . . . . . 2 . . . . . . 3 7 4 8 . . . . . 14 Message Errors 6 | . . . . . . . . . . . . . 1 2 . 1 . . . . . 2 Matter Fused 9 | . . . . . . . . . . . . . . 2 1 2 . . . . . 4 Heat Flow Errors 2 | . . . . . . 1 . . . . . . . . . . . . . . . 1 Energy Discharges 6 | . . . . . . . . . . . . . 1 . 2 1 . . . . . 2 Parts Rejected 2 | . . . . . . 1 . . . . . . . . . 1 . . . . . . Data Loss (minor) 9 | . . . . . . . . . . . . . 1 2 1 3 . . . . . 2 Data Loss (major) 1 | . . . . . . . . . . . . . . . . . . . . . . 1 Misdirections 3 | . . . . . . . . . . . . . . 1 . . . . . . . 2 Overload Shots . | . . . . . . . . . . . . . . . . . . . . . . . Overflow Damage 101 | . . . . . . . . 21 . . 15 . . . . 4 . . . . . 61 Projectiles 36 | . . . . . . . . 21 . . 15 . . . . . . . . . . . Explosions 61 | . . . . . . . . . . . . . . . . . . . . . . 61 Melee 4 | . . . . . . . . . . . . . . . . 4 . . . . . . Knockbacks 9 | . . . . . . 3 1 . . . 5 . . . . . . . . . . . Impact . | . . . . . . . . . . . . . . . . . . . . . . . Kinetic 9 | . . . . . . 3 1 . . . 5 . . . . . . . . . . . Secondary . | . . . . . . . . . . . . . . . . . . . . . . . Self-Inflicted Damage 63 | . . . . . . . . . . . . . . . . . . . . . . 63 Shots 2 | . . . . . . . . . . . . . . . . . . . . . . 2 Rammed . | . . . . . . . . . . . . . . . . . . . . . . . Targets Rammed 8 | . . . . . . . . . . . . . . . . . . . . . . 8 Kicked 8 | . . . . . . . . . . . . . . . . . . . . . . 8 Crushed . | . . . . . . . . . . . . . . . . . . . . . . . Highest Temperature 250 | 54 90 . . 36 45 214 . . . . 40 84 113 55 . 21 . . 13 5 . 250 Average Temperature 32 | 27 42 . . 18 24 104 . . . . 10 48 52 30 . 21 . . 4 5 . 46 Received Heat Transfer 1171 | . . . . . 63 27 . 6 . . 270 . 12 56 . 524 . . 33 . . 180 Siege Activations . | . . . . . . . . . . . . . . . . . . . . . . . Martial Activations . | . . . . . . . . . . . . . . . . . . . . . . . Shielding Activations . | . . . . . . . . . . . . . . . . . . . . . . . Robots Disrupted . | . . . . . . . . . . . . . . . . . . . . . . . Combat Hostiles . | . . . . . . . . . . . . . . . . . . . . . . . Robots Corrupted 1 | . . . . . . . . . . . 1 . . . . . . . . . . . Combat Hostiles 1 | . . . . . . . . . . . 1 . . . . . . . . . . . Parts Fried 1 | . . . . . . . . . . . 1 . . . . . . . . . . . Impact Corruptions . | . . . . . . . . . . . . . . . . . . . . . . . Robots Melted . | . . . . . . . . . . . . . . . . . . . . . . . Combat Hostiles . | . . . . . . . . . . . . . . . . . . . . . . . Parts Melted . | . . . . . . . . . . . . . . . . . . . . . . . Heat Transferred 385 | 50 . . . . 50 . . . . . 100 . 185 . . . . . . . . . Parts Sabotaged . | . . . . . . . . . . . . . . . . . . . . . . . Parts Stolen . | . . . . . . . . . . . . . . . . . . . . . . . Parts Stripped . | . . . . . . . . . . . . . . . . . . . . . . . Power Chain Reactions 3 | 1 . . . . 1 . . . . . 1 . . . . . . . . . . . Alert | -11 -10 -10 -10 -9 -8 -7 -6 -6 -6 -6 -5 -5 -5 -5 -5 -4 -4 -4 -3 -2 -2 -1 ------- Run | Yrd Mat Min Exi Min Mat Fac Fac Low Low Dat Pro Fac Upp Upp Zhi Pro Fac DSF Res Res DSF Acc Maximum Alert Level 3 | . . . . . . . . . . . . 3 . . . . . . . . . . Low Security (%) 84 | 100 100 100 . 100 100 100 100 . . . . . . . . . 100 100 100 100 100 100 Level 1 4 | . . . . . . . . . . . . 30 . . . . . . . . . . Level 2 7 | . . . . . . . . . . . . 49 . . . . . . . . . . Level 3 3 | . . . . . . . . . . . . 20 . . . . . . . . . . Level 4 . | . . . . . . . . . . . . . . . . . . . . . . . Level 5 . | . . . . . . . . . . . . . . . . . . . . . . . High Security . | . . . . . . . . . . . . . . . . . . . . . . . Max Security . | . . . . . . . . . . . . . . . . . . . . . . . Peak Influence 750 | 10 60 11 . . 47 59 38 . . . . 750 . . . . . 3 40 . 15 91 Initial 750 | . . 11 . . . . 28 . . . . 750 . . . . . 3 . . . 8 Average 93 | 1 14 . . . 8 4 5 . . . . 522 . . . . . 2 12 . 2 35 Influence Increases 2420 | 20 75 . . . 87 122 55 35 30 . 245 792 115 105 . 135 5 . 165 . 15 419 Destroy 0b10 Robot/C 520 | . 60 . . . 60 60 20 20 20 . 180 . 40 20 . . . . . . . 40 Destroy 0b10 Robot/NC 45 | 20 . . . . . . . . . . 10 5 . . . . . . . . . 10 Destroy Leader 80 | . 10 . . . 20 10 10 . 10 . 10 . . 10 . . . . . . . . Successful Hack 71 | . 5 . . . . 21 8 . . . . 5 . . . . 5 . . . . 27 Disable Machine 90 | . . . . . . . 15 . . . . 30 . . . . . . 15 . . 30 Destroy Structure 249 | . . . . . 7 1 2 . . . . 2 . . . . . . 60 . . 177 Advance Influence 750 | . . . . . . . . . . . . 750 . . . . . . . . . . Partial Spotted 45 | . . . . . . . . . . . . . . . . . . . 30 . . 15 Lose Combat Pursuer 570 | . . . . . . 30 . 15 . . 45 . 75 75 . 135 . . 60 . 15 120 Influence Decreases 2375 | 20 45 30 . . 87 63 108 38 33 . 245 470 320 217 5 135 . 5 165 . . 389 Entered New Map 212 | . . 19 . . . . 31 3 2 . . . 120 23 5 . . 2 . . . 7 Time Decay 1669 | 20 45 11 . . 87 63 77 35 31 . 155 310 190 144 . 75 . . 155 . . 271 Search Patrol Dispatched 150 | . . . . . . . . . . . . 150 . . . . . . . . . . Lost Part 344 | . . . . . . . . . . . 90 10 10 50 . 60 . 3 10 . . 111 Squads Dispatched 22 | . 2 . . . 6 4 . . . . . 1 . . . . . 1 2 . . 6 Investigation 6 | . 1 . . . 2 2 . . . . . . . . . . . . . . . 1 Extermination 5 | . . . . . . 1 . . . . . 1 . . . . . . 1 . . 2 Reinforcement 8 | . 1 . . . 1 1 . . . . . . . . . . . 1 1 . . 3 Assault . | . . . . . . . . . . . . . . . . . . . . . . . Garrison 3 | . . . . . 3 . . . . . . . . . . . . . . . . . Intercept . | . . . . . . . . . . . . . . . . . . . . . . . Searches Triggered 1 | . . . . . . . . . . . . 1 . . . . . . . . . . Construction Impeded 1 | . . . . . . . . . . . . . . . . . . . . . . 1 Haulers Reinforced . | . . . . . . . . . . . . . . . . . . . . . . . Active Scanning Responses . | . . . . . . . . . . . . . . . . . . . . . . . Cargo Convoy Interrupts . | . . . . . . . . . . . . . . . . . . . . . . . Stealth | -11 -10 -10 -10 -9 -8 -7 -6 -6 -6 -6 -5 -5 -5 -5 -5 -4 -4 -4 -3 -2 -2 -1 --------- Run | Yrd Mat Min Exi Min Mat Fac Fac Low Low Dat Pro Fac Upp Upp Zhi Pro Fac DSF Res Res DSF Acc Distress Signals 10 | . 1 . . . 1 . . . . . 6 . . . . . . . 1 . . 1 Communications Jammed . | . . . . . . . . . . . . . . . . . . . . . . . Distress Signals . | . . . . . . . . . . . . . . . . . . . . . . . Times Spotted 130 | . 5 . . 4 4 18 1 3 1 . 22 5 6 11 . 16 . 4 10 . 1 19 Peak Tracking Total 12 | . 5 . . 2 2 3 1 3 . . 4 3 7 6 . 8 . 5 4 . 1 12 Tactical Retreats 29 | . . . . 1 . 2 . 1 . . 3 . 4 4 . 4 . . 3 . 1 6 Traps | -11 -10 -10 -10 -9 -8 -7 -6 -6 -6 -6 -5 -5 -5 -5 -5 -4 -4 -4 -3 -2 -2 -1 ------- Run | Yrd Mat Min Exi Min Mat Fac Fac Low Low Dat Pro Fac Upp Upp Zhi Pro Fac DSF Res Res DSF Acc Traps Triggered 8 | . 1 . . . . 2 . . . . . 1 . . . . . . 1 . . 3 Indirectly . | . . . . . . . . . . . . . . . . . . . . . . . Trap Hack Attempts . | . . . . . . . . . . . . . . . . . . . . . . . Triggered . | . . . . . . . . . . . . . . . . . . . . . . . Disarmed . | . . . . . . . . . . . . . . . . . . . . . . . Reprogrammed . | . . . . . . . . . . . . . . . . . . . . . . . Reused . | . . . . . . . . . . . . . . . . . . . . . . . Traps Extracted . | . . . . . . . . . . . . . . . . . . . . . . . Installed . | . . . . . . . . . . . . . . . . . . . . . . . Triggered . | . . . . . . . . . . . . . . . . . . . . . . . Machines | -11 -10 -10 -10 -9 -8 -7 -6 -6 -6 -6 -5 -5 -5 -5 -5 -4 -4 -4 -3 -2 -2 -1 ---------- Run | Yrd Mat Min Exi Min Mat Fac Fac Low Low Dat Pro Fac Upp Upp Zhi Pro Fac DSF Res Res DSF Acc Machines Disabled 6 | . . . . . . . 1 . . . . 2 . . . . . . 1 . . 2 Max in Single Turn 1 | . . . . . . . 1 . . . . 1 . . . . . . 1 . . 1 Garrison Access 2 | . . . . . . 1 . . . . . . . . . . . . . . . 1 Energy Cycler 1 | . . . . . . . . . . . . . . . . . . . . . . 1 Machines Repaired . | . . . . . . . . . . . . . . . . . . . . . . . Machines Dismantled . | . . . . . . . . . . . . . . . . . . . . . . . Machines Sabotaged . | . . . . . . . . . . . . . . . . . . . . . . . Overloaded Fab Kills . | . . . . . . . . . . . . . . . . . . . . . . . Hacking | -11 -10 -10 -10 -9 -8 -7 -6 -6 -6 -6 -5 -5 -5 -5 -5 -4 -4 -4 -3 -2 -2 -1 --------- Run | Yrd Mat Min Exi Min Mat Fac Fac Low Low Dat Pro Fac Upp Upp Zhi Pro Fac DSF Res Res DSF Acc Machines Accessed 37 | . 4 . 2 . 3 4 4 1 . 4 . 2 . . 4 . 1 . 2 1 . 5 Terminals 18 | . 3 . . . 3 1 3 . . . . 1 . . . . 1 . 1 1 . 4 Fabricators 3 | . . . . . . 2 . . . . . 1 . . . . . . . . . . Repair Stations . | . . . . . . . . . . . . . . . . . . . . . . . Recycling Units 1 | . 1 . . . . . . . . . . . . . . . . . . . . . Scanalyzers 1 | . . . . . . . 1 . . . . . . . . . . . . . . . Garrison Access 3 | . . . . . . 1 . . . . . . . . . . . . 1 . . 1 Total Hacks 117 | . 11 . 3 . 9 9 13 1 . 32 . 8 . . 17 . 1 . 4 1 . 8 Successful 77 | . 3 . 3 . 3 3 4 1 . 32 . 2 . . 17 . 1 . 2 1 . 5 Failed 40 | . 8 . . . 6 6 9 . . . . 6 . . . . . . 2 . . 3 Catastrophic 11 | . 4 . . . 1 3 1 . . . . . . . . . . . 1 . . 1 Database Lockouts . | . . . . . . . . . . . . . . . . . . . . . . . Manual 25 | . 7 . 1 . 6 . 7 . . . . 3 . . . . . . . . . 1 Terminals 45 | . 8 . . . 9 3 9 . . . . 5 . . . . 1 . 2 1 . 7 Fabricators 7 | . . . . . . 4 . . . . . 3 . . . . . . . . . . Repair Stations . | . . . . . . . . . . . . . . . . . . . . . . . Recycling Units 3 | . 3 . . . . . . . . . . . . . . . . . . . . . Scanalyzers 4 | . . . . . . . 4 . . . . . . . . . . . . . . . Garrison Access 5 | . . . . . . 2 . . . . . . . . . . . . 2 . . 1 Terminal Hacks 64 | . . . 3 . 1 1 1 1 . 32 . . . . 17 . 1 . 2 1 . 4 Record 20 | . . . 2 . . . . . . 11 . . . . 5 . . . 1 . . 1 Part Schematic 16 | . . . . . . . . . . 12 . . . . 4 . . . . . . . Robot Schematic 6 | . . . . . . . . . . 6 . . . . . . . . . . . . Robot Analysis 4 | . . . . . . . . . . . . . . . 4 . . . . . . . Prototype ID Bank 7 | . . . . . . . . . . 3 . . . . 4 . . . . . . . Open Door 1 | . . . . . . . . 1 . . . . . . . . . . . . . . Open DSF 2 | . . . . . . . . . . . . . . . . . 1 . . 1 . . Level Access Points 1 | . . . . . . . . . . . . . . . . . . . . . . 1 Branch Access Points 2 | . . . . . . 1 . . . . . . . . . . . . . . . 1 Emergency Access Points 1 | . . . . . . . . . . . . . . . . . . . 1 . . . Recall Investigation 1 | . . . . . 1 . . . . . . . . . . . . . . . . . Zone Layout 2 | . . . . . . . 1 . . . . . . . . . . . . . . 1 Proto ID Catalog 1 | . . . 1 . . . . . . . . . . . . . . . . . . . Fabricator Hacks 2 | . . . . . . 1 . . . . . 1 . . . . . . . . . . Network Status 2 | . . . . . . 1 . . . . . 1 . . . . . . . . . . Repair Station Hacks . | . . . . . . . . . . . . . . . . . . . . . . . Recycling Unit Hacks 2 | . 2 . . . . . . . . . . . . . . . . . . . . . Report Inventory 1 | . 1 . . . . . . . . . . . . . . . . . . . . . Retrieve Components 1 | . 1 . . . . . . . . . . . . . . . . . . . . . Scanalyzer 2 | . . . . . . . 2 . . . . . . . . . . . . . . . Insert Component 2 | . . . . . . . 2 . . . . . . . . . . . . . . . Garrison Access Hacks 2 | . . . . . . 1 . . . . . . . . . . . . . . . 1 Seal Access 2 | . . . . . . 1 . . . . . . . . . . . . . . . 1 Unauthorized Hacks 5 | . 1 . . . 2 . 1 . . . . 1 . . . . . . . . . . Terminals 5 | . 1 . . . 2 . 1 . . . . 1 . . . . . . . . . . Botnet 5 | . 1 . . . 2 . 1 . . . . 1 . . . . . . . . . . Fabricators . | . . . . . . . . . . . . . . . . . . . . . . . Repair Stations . | . . . . . . . . . . . . . . . . . . . . . . . Recycling Units . | . . . . . . . . . . . . . . . . . . . . . . . Scanalyzers . | . . . . . . . . . . . . . . . . . . . . . . . Garrison Access . | . . . . . . . . . . . . . . . . . . . . . . . Data Cores Recovered 1 | . . . . . . . . . . . . . . . . . . . . . . 1 Used 1 | . . . . . . . . . . . . . . . . . . . . . . 1 Hacking Detections 21 | . 3 . . . 3 3 4 . . . . 2 . . . . . . 2 . . 4 Full Trace Events 5 | . 2 . . . 1 2 . . . . . . . . . . . . . . . . Feedback Events . | . . . . . . . . . . . . . . . . . . . . . . . Feedback Blocked . | . . . . . . . . . . . . . . . . . . . . . . . Robot Schematics Acquired 6 | . . . . . . . . . . 6 . . . . . . . . . . . . Robots Built . | . . . . . . . . . . . . . . . . . . . . . . . Authchips . | . . . . . . . . . . . . . . . . . . . . . . . Time . | . . . . . . . . . . . . . . . . . . . . . . . Total Robot Build Rating . | . . . . . . . . . . . . . . . . . . . . . . . Part Schematics Acquired 16 | . . . . . . . . . . 12 . . . . 4 . . . . . . . Parts Built . | . . . . . . . . . . . . . . . . . . . . . . . Authchips . | . . . . . . . . . . . . . . . . . . . . . . . Time . | . . . . . . . . . . . . . . . . . . . . . . . Total Part Build Rating . | . . . . . . . . . . . . . . . . . . . . . . . Parts Repaired . | . . . . . . . . . . . . . . . . . . . . . . . Time . | . . . . . . . . . . . . . . . . . . . . . . . Parts Recycled . | . . . . . . . . . . . . . . . . . . . . . . . Recycled Matter . | . . . . . . . . . . . . . . . . . . . . . . . Retrieved Matter . | . . . . . . . . . . . . . . . . . . . . . . . Retrieved Components 1 | . 1 . . . . . . . . . . . . . . . . . . . . . Parts Scanalyzed . | . . . . . . . . . . . . . . . . . . . . . . . Part Schematics Acquired . | . . . . . . . . . . . . . . . . . . . . . . . Parts Damaged . | . . . . . . . . . . . . . . . . . . . . . . . Bothacking | -11 -10 -10 -10 -9 -8 -7 -6 -6 -6 -6 -5 -5 -5 -5 -5 -4 -4 -4 -3 -2 -2 -1 ------------ Run | Yrd Mat Min Exi Min Mat Fac Fac Low Low Dat Pro Fac Upp Upp Zhi Pro Fac DSF Res Res DSF Acc Used RIF Installer . | . . . . . . . . . . . . . . . . . . . . . . . Robots Hacked . | . . . . . . . . . . . . . . . . . . . . . . . Non-combat . | . . . . . . . . . . . . . . . . . . . . . . . Combat . | . . . . . . . . . . . . . . . . . . . . . . . Robot Hacks Applied . | . . . . . . . . . . . . . . . . . . . . . . . Relay Couplers Released . | . . . . . . . . . . . . . . . . . . . . . . . Fabnet Peak Effective % . | . . . . . . . . . . . . . . . . . . . . . . . Robots Rewired . | . . . . . . . . . . . . . . . . . . . . . . . Allies Hacked . | . . . . . . . . . . . . . . . . . . . . . . . Hacks Repelled . | . . . . . . . . . . . . . . . . . . . . . . . Allies | -11 -10 -10 -10 -9 -8 -7 -6 -6 -6 -6 -5 -5 -5 -5 -5 -4 -4 -4 -3 -2 -2 -1 -------- Run | Yrd Mat Min Exi Min Mat Fac Fac Low Low Dat Pro Fac Upp Upp Zhi Pro Fac DSF Res Res DSF Acc Total Allies . | . . . . . . . . . . . . . . . . . . . . . . . Largest Group . | . . . . . . . . . . . . . . . . . . . . . . . Highest-Rated Group . | . . . . . . . . . . . . . . . . . . . . . . . Highest-Rated Ally . | . . . . . . . . . . . . . . . . . . . . . . . Total Orders . | . . . . . . . . . . . . . . . . . . . . . . . Ally Attacks . | . . . . . . . . . . . . . . . . . . . . . . . Total Damage . | . . . . . . . . . . . . . . . . . . . . . . . Kills . | . . . . . . . . . . . . . . . . . . . . . . . Allies Corrupted . | . . . . . . . . . . . . . . . . . . . . . . . Allies Melted . | . . . . . . . . . . . . . . . . . . . . . . . Intel | -11 -10 -10 -10 -9 -8 -7 -6 -6 -6 -6 -5 -5 -5 -5 -5 -4 -4 -4 -3 -2 -2 -1 ------- Run | Yrd Mat Min Exi Min Mat Fac Fac Low Low Dat Pro Fac Upp Upp Zhi Pro Fac DSF Res Res DSF Acc Active Infowar (turns) 5931 | 4 253 256 664 66 388 418 760 499 218 149 535 626 396 303 141 147 36 23 49 . . . Sensors 2386 | . . . . . . . . 498 218 149 535 . 395 303 141 147 . . . . . . Terrain 3883 | . . . 224 66 388 418 760 499 218 149 535 626 . . . . . . . . . . Traps 1 | . . . . . . . . . . . . . 1 . . . . . . . . . Seismic 953 | 4 253 256 440 . . . . . . . . . . . . . . . . . . . Decoding 59 | . . . . . . . . . . . . . . . . . 36 23 . . . . Jamming 49 | . . . . . . . . . . . . . . . . . . . 49 . . . Robot Analysis Total 4 | . . . . . . . . . . . . . . . 4 . . . . . . . Derelict Logs Recovered 1 | . . . . . . . . . . . . . 1 . . . . . . . . . Drone Launches . | . . . . . . . . . . . . . . . . . . . . . . . Drone Recoveries . | . . . . . . . . . . . . . . . . . . . . . . . Decoded 0b10 Intel 4 | . . . . . . . . . . . . . . . . . 2 2 . . . . Items 4 | . . . . . . . . . . . . . . . . . 2 2 . . . . Exploration | -11 -10 -10 -10 -9 -8 -7 -6 -6 -6 -6 -5 -5 -5 -5 -5 -4 -4 -4 -3 -2 -2 -1 ------------- Run | Yrd Mat Min Exi Min Mat Fac Fac Low Low Dat Pro Fac Upp Upp Zhi Pro Fac DSF Res Res DSF Acc Turns Passed 7583 | 125 253 256 665 91 478 496 760 499 218 149 641 692 399 303 141 236 36 33 408 27 54 623 Spaces Moved 6517 | 64 146 161 412 45 247 371 418 391 162 120 375 701 420 302 145 222 35 62 693 16 100 909 Core 119 | 15 . . . . . . . . . . . . . . . 89 15 . . . . . Treads 1064 | 49 146 161 412 45 247 4 . . . . . . . . . . . . . . . . Legs 3547 | . . . . . . 223 418 391 162 120 360 701 420 302 145 133 . . . . . 172 Wheels 30 | . . . . . . 15 . . . . 15 . . . . . . . . . . . Hover 1757 | . . . . . . 129 . . . . . . . . . . 20 62 693 16 100 737 Flight . | . . . . . . . . . . . . . . . . . . . . . . . Fastest Speed 23 | 50 160 160 160 160 160 56 125 125 125 125 95 90 90 90 90 90 28 32 23 23 23 23 Average Speed 96 | 134 160 160 160 160 160 98 125 125 125 125 126 90 90 90 90 95 64 37 31 23 23 49 Slowest Speed 250 | 160 160 160 160 160 160 160 125 125 125 125 190 90 90 90 90 250 100 40 108 23 23 140 Overloaded Moves . | . . . . . . . . . . . . . . . . . . . . . . . Propulsion Burnouts . | . . . . . . . . . . . . . . . . . . . . . . . Robots Hopped . | . . . . . . . . . . . . . . . . . . . . . . . Potential Cave-ins . | . . . . . . . . . . . . . . . . . . . . . . . Cave-ins Triggered 1 | . . . . . . . . . . . . . . . . . . . . . . 1 Teleports 1 | . . . . . . . . . . . . . . . . 1 . . . . . . Exploration Rate (%) 39 | 4 32 34 69 13 29 11 8 68 37 68 51 15 72 56 61 52 2 50 23 . 90 28 Regions Visited 22 Branch Regions 11 Pre-discovered Areas 5 | . . . 1 . . . . . . 1 . . . . 3 . . . . . . . Known Exits Taken 15 | . . . . 1 1 . 1 1 1 1 1 1 1 1 1 1 1 . 1 1 . . Unknown Exits Taken 5 | 1 1 1 1 . . 1 . . . . . . . . . . . . . . . . Scrap Searched 11 | . . . . 2 . . . . 1 . 3 . 3 2 . . . . . . . . Spaces Dug 58 | . . . . . . . . . . . . 1 . . . . . . 30 . . 27 Terrain Destroyed 145 | . . . . . 7 1 2 3 . . 13 1 . . . . . . 30 . . 88 Melee 47 | . . . . . . . . . . . . 1 . . . . . . 30 . . 16 Projectile 19 | . . . . . . 1 2 3 . . 13 . . . . . . . . . . . AOE 79 | . . . . . 7 . . . . . . . . . . . . . . . . 72 Terrain Rammed . | . . . . . . . . . . . . . . . . . . . . . . . Walls Destroyed . | . . . . . . . . . . . . . . . . . . . . . . . Machines Disabled . | . . . . . . . . . . . . . . . . . . . . . . . Actions | -11 -10 -10 -10 -9 -8 -7 -6 -6 -6 -6 -5 -5 -5 -5 -5 -4 -4 -4 -3 -2 -2 -1 --------- Run | Yrd Mat Min Exi Min Mat Fac Fac Low Low Dat Pro Fac Upp Upp Zhi Pro Fac DSF Res Res DSF Acc Total 7546 | 91 153 160 422 53 314 484 652 397 176 119 465 755 434 320 155 239 45 72 838 38 131 1033 Wait 453 | . . . . . 30 31 205 . 14 . 1 11 . 5 . 4 . . 66 23 . 63 Move 6493 | 63 145 160 411 44 246 370 417 390 161 119 374 700 419 301 144 221 34 61 692 15 98 908 Hop . | . . . . . . . . . . . . . . . . . . . . . . . Pick Up 156 | 13 1 . 4 . 19 29 13 1 . . 6 22 2 3 5 2 2 6 15 . 9 4 Fast Attach 22 | 1 1 . . 1 . . . . . . . . . . . 1 5 1 7 . 3 2 Attach 89 | 7 . . 1 . 5 10 2 . . . 11 8 3 1 5 5 3 1 12 . 2 13 Detach 19 | 1 . . . . 1 1 . . . . . 3 . . 1 1 . 1 6 . . 4 Swap 26 | . . . . . 3 11 2 1 . . 4 1 1 . . . . . . . 2 1 Drop 53 | . . . 6 . 2 10 7 1 . . 2 2 1 1 . 1 1 2 9 . 7 1 Fire 150 | 6 6 . . 8 8 22 6 4 1 . 64 4 8 1 . . . . . . . 12 Melee 67 | . . . . . . . . . . . 3 4 . 8 . 4 . . 31 . . 17 Ram . | . . . . . . . . . . . . . . . . . . . . . . . Kick 8 | . . . . . . . . . . . . . . . . . . . . . . 8 Crush . | . . . . . . . . . . . . . . . . . . . . . . . Escape Stasis 10 | . . . . . . . . . . . . . . . . . . . . . 10 . Rewire . | . . . . . . . . . . . . . . . . . . . . . . . Trap . | . . . . . . . . . . . . . . . . . . . . . . . Miscellaneous . | . . . . . . . . . . . . . . . . . . . . . . . Route ------- -11/Scrapyard -10/Materials -10/Mines -10/Exiles -9/Mines -8/Materials -7/Factory (discovered 3 exits: *Fac / Low x2) -6/Factory (discovered 2 exits: Fac / *Low) -6/Lower Caves -6/Lower Caves -6/Data Miner -5/Proximity Caves -5/Factory (discovered 2 exits: *Fac / *Upp) -5/Upper Caves -5/Upper Caves (discovered 2 exits: *Fac / *Zhi) -5/Zhirov -4/Proximity Caves -4/Factory -4/DSF -3/Research (discovered 2 exits: *Res / *Tes) -2/Research -2/DSF -1/Access (discovered 2 exits: *Sur / Com) To Epsilon Eridani History --------- Turn | Location | Event 13 | -11/Scrapyard | Discovered new exit (range 15) 126 | -11/Scrapyard | Entered Materials 314 | -10/Materials | Build established: Mutant 365 | -10/Materials | Discovered new exit (range 8) 379 | -10/Materials | Entered Mines 388 | -10/Mines | Met a Derelict bent on vengeance 597 | -10/Mines | Deemed a non-threat by the Exiles lab entrance 597 | -10/Mines | Discovered new exit (range 5) 635 | -10/Mines | Entered Exiles 675 | -10/Exiles | Met 8R-AWN 698 | -10/Exiles | Met EX-HEX 792 | -10/Exiles | Met EX-DEC 819 | -10/Exiles | Learned location of Zion (-7) 1006 | -10/Exiles | Met EX-BIN 1029 | -10/Exiles | Aligned with FarCom system 1030 | -10/Exiles | Given EX-Vault access code 1067 | -10/Exiles | Opened EX-Vault 1081 | -10/Exiles | Found Lightpack 2.0 1117 | -10/Exiles | Warned to stay clear of 0b10 Research branches 1286 | -10/Exiles | Discovered new exit (range 10) 1300 | -10/Exiles | Left Exiles lab with Lightpack 2.0 1300 | -10/Exiles | Entered Mines 1301 | -9/Mines | Assembled infested the area 1362 | -9/Mines | Discovered new exit (range 8) 1390 | -9/Mines | Identified exit to Materials 1391 | -9/Mines | Entered Materials 1391 | -8/Materials | Evolved 4 slots: Utility x4 1651 | -8/Materials | Garrison activated, responded to threat 1771 | -8/Materials | Build established: Hauler-Skirmisher 1798 | -8/Materials | Met 7R-MNS 1844 | -8/Materials | Discovered new exit (range 15) 1867 | -8/Materials | Identified exit to Factory 1869 | -8/Materials | Entered Factory 1869 | -7/Factory | Evolved 2 slots: Utility x2 1870 | -7/Factory | Caught up to 7R-MNS 2081 | -7/Factory | 7R-MNS lamented failing the tripod run 2087 | -7/Factory | Found Prototype Leg 2101 | -7/Factory | Lost 3 parts (1n1u1w) 2102 | -7/Factory | Found Prototype Device 2305 | -7/Factory | Identified Exp. Focal Shield 2328 | -7/Factory | Build established: Hauler-Mutant 2335 | -7/Factory | Identified exit to Lower Caves 2361 | -7/Factory | Discovered new exit (range 3) 2365 | -7/Factory | Entered another Factory area 2365 | -6/Factory | Evolved 2 slots: Utility x2 2380 | -6/Factory | Identified Tripod Weapons Platform 2485 | -6/Factory | Discovered new exit (range 16) 2638 | -6/Factory | Build established: Hauler-Skirmisher 3072 | -6/Factory | Discovered new exit (range 19) 3124 | -6/Factory | Identified exit to Lower Caves 3125 | -6/Factory | Entered Lower Caves 3357 | -6/Lower Caves | Found Prototype Device 3523 | -6/Lower Caves | Attracted the attention of an 0b10 checkpoint 3557 | -6/Lower Caves | Encountered a Warlord checkpoint 3616 | -6/Lower Caves | Discovered new exit (range 4) 3623 | -6/Lower Caves | Identified exit to Lower Caves 3624 | -6/Lower Caves | Entered another Lower Caves area 3744 | -6/Lower Caves | Encountered a Warlord checkpoint 3813 | -6/Lower Caves | Discovered new exit (range 20) 3837 | -6/Lower Caves | Identified exit to Data Miner 3842 | -6/Lower Caves | Entered Data Miner 3842 | -6/Data Miner | Discovered new exit (range 6) 3866 | -6/Data Miner | Met Data Miner 3890 | -6/Data Miner | Learned location of Section 7 (-2) 3890 | -6/Data Miner | Acquired the access code to Warlord's prototype stash 3907 | -6/Data Miner | Received God Mode back door access code from Data Miner 3934 | -6/Data Miner | Identified exit to Proximity Caves 3991 | -6/Data Miner | Entered Proximity Caves 3993 | -5/Proximity Caves | Spotter reported a threat 3994 | -5/Proximity Caves | Spotter reported a threat 4047 | -5/Proximity Caves | Spotter reported a threat 4150 | -5/Proximity Caves | Attracted the attention of an 0b10 checkpoint 4176 | -5/Proximity Caves | Spotter reported a threat 4291 | -5/Proximity Caves | Spotter reported a threat 4564 | -5/Proximity Caves | Lost 3 allies 4593 | -5/Proximity Caves | Lost 8 parts (1p2n3u2w) 4620 | -5/Proximity Caves | Discovered new exit (range 10) 4628 | -5/Proximity Caves | Core integrity fell below 50% 4632 | -5/Proximity Caves | Identified exit to Factory 4632 | -5/Proximity Caves | Entered Factory 4632 | -5/Factory | Evolved 2 slots: Power x1, Propulsion x1 4634 | -5/Factory | Attached Tripod Weapons Platform, gained temporary slots: Weapon x2 4634 | -5/Factory | Identified Heart of Steel 4661 | -5/Factory | Lost 4 parts (2n1u1w) 4778 | -5/Factory | Discovered new exit (range 5) 4781 | -5/Factory | Identified exit to Factory 4932 | -5/Factory | Search patrols dispatched 4982 | -5/Factory | Build established: Hauler-Assassin 5082 | -5/Factory | Discovered new exit (range 3) 5084 | -5/Factory | Identified exit to Upper Caves 5324 | -5/Factory | Entered Upper Caves 5377 | -5/Upper Caves | Learned Factory stockpile data 5446 | -5/Upper Caves | Attracted the attention of an 0b10 outpost 5615 | -5/Upper Caves | Build established: Hauler-Mutant 5625 | -5/Upper Caves | Attracted the attention of an 0b10 checkpoint 5707 | -5/Upper Caves | Discovered new exit (range 7) 5712 | -5/Upper Caves | Identified exit to Upper Caves 5723 | -5/Upper Caves | Entered another Upper Caves area 5725 | -5/Upper Caves | Discovered exit to Factory (range 11) 5779 | -5/Upper Caves | P-70 Sage assimilated allied D1-Z8D(r) 5901 | -5/Upper Caves | Attracted the attention of an 0b10 checkpoint 5921 | -5/Upper Caves | Spotted B-75 Beast 6001 | -5/Upper Caves | System corruption reached 10% 6022 | -5/Upper Caves | Discovered new exit (range 5) 6025 | -5/Upper Caves | Identified exit to Zhirov 6026 | -5/Upper Caves | Entered Zhirov 6026 | -5/Zhirov | Discovered new exit (range 3) 6031 | -5/Zhirov | Lost 3 parts (2p1u) 6043 | -5/Zhirov | Met Zhirov 6061 | -5/Zhirov | Learned location of Quarantine (-2) 6061 | -5/Zhirov | Learned location of Testing (-3) 6061 | -5/Zhirov | Learned location of Command (-1) 6074 | -5/Zhirov | Zhirov requested help retrieving the SGEMP Prototype 6090 | -5/Zhirov | Found Alien Artifact 6091 | -5/Zhirov | Identified Integrated Reactor 6091 | -5/Zhirov | Installed Integrated Reactor, increased core energy generation (+10) 6101 | -5/Zhirov | Found Alien Artifact 6166 | -5/Zhirov | Identified exit to Proximity Caves 6167 | -5/Zhirov | Entered Proximity Caves 6309 | -4/Proximity Caves | Core integrity fell below 50% 6315 | -4/Proximity Caves | Identified Transdimensional Reconstructor 6315 | -4/Proximity Caves | Warped through subspace 6345 | -4/Proximity Caves | Lost 9 parts (1p4n4u) 6391 | -4/Proximity Caves | Discovered exit to Factory (range 11) 6403 | -4/Proximity Caves | Entered Factory 6403 | -4/Factory | Evolved 2 slots: Propulsion x2 6439 | -4/Factory | Identified exit to DSF 6439 | -4/Factory | Entered DSF 6450 | -4/DSF | Found Unknown Device 6453 | -4/DSF | Identified Quantum Capacitor 6462 | -4/DSF | Additional patrols routed to DSF 6463 | -4/DSF | Discovered new exit (range 13) 6472 | -4/DSF | Identified exit to Research 6472 | -4/DSF | Entered Research 6472 | -3/Research | Evolved 2 slots: Propulsion x2 6624 | -3/Research | Found Fusion Bomb Launcher 6702 | -3/Research | Discovered new exit (range 5) 6705 | -3/Research | Identified exit to Testing 6878 | -3/Research | Discovered new exit (range 7) 6879 | -3/Research | Identified exit to Research 6880 | -3/Research | Entered another Research area 6880 | -2/Research | Evolved 2 slots: Power x1, Propulsion x1 6907 | -2/Research | Identified exit to DSF 6907 | -2/Research | Entered DSF 6944 | -2/DSF | Additional patrols routed to DSF 6952 | -2/DSF | Discovered new exit (range 16) 6961 | -2/DSF | Identified exit to Access 6961 | -2/DSF | Entered Access 6961 | -1/Access | Evolved 2 slots: Propulsion x2 6975 | -1/Access | Identified exit to Command 7049 | -1/Access | Energy Cycler disabled 7119 | -1/Access | Identified exit to Surface 7209 | -1/Access | Spotted B-99 Colossus 7214 | -1/Access | Spotted B-99 Colossus 7226 | -1/Access | Found Prototype Launcher 7226 | -1/Access | Identified Mni. Smartbomb Launcher 7251 | -1/Access | Build established: Hacker-Sprinter 7278 | -1/Access | Crushed by falling debris 7354 | -1/Access | System corruption reached 10% 7380 | -1/Access | Lost 19 parts (4p8n5u2w) 7523 | -1/Access | Spotted B-99 Colossus 7552 | -1/Access | Build established: Hacker-Mutant 7584 | *** | Escaped! Last Messages --------------- 07535_ Slug penetrates Wall. 07543_ QC>JQ=,LOKA1Z#BJJMCB59SJ#BNUG1K 07549_ Slug penetrates Wall. 07549_ Penetrated by Slug. 07549_ Slug penetrates Wall. 07552_ Slug penetrates K-01 Serf. 07555_ Triggered Gamma Bomb Trap. 07555_ A bubble of electromagnetic force engulfs the area. 07555_ Door malfunctions. 07556_ K-01 Serf destroyed. 07558_ Hvy. Shield Leg destroyed. 07560_ System corrupted: Matter fused (-6). 07561_ Penetrated by Slug. 07561_ Slug penetrates Wall. 07570_ Main Access Shell breached. 07575_ System corrupted: Energy discharge (-108). 07577_ The Access Shell folds into the floor. 07580_ Slug penetrates Reinforced Barrier. Map ----- +----------------------------------------------------+ | ?????????????????????"" #% #?? | | ?????????????????????"""" # % #?? | | ?????????????????????"""" %% % #?? | | ??????????????????? "" # #?? | | ???????????????????? "" ??# #?? | | ?????????????????? ????# ####### """#?? | | ???????????????? ??????# #?????# % """#?? | | ????????????????? ????????# #?????" """#?? | | ?????????????????##????????###/######" % F"??? | | ???????????????????????????# # """#?? | | ######?????????????????????# "" #?? | | #?????????????????????# # ### | | #?????????????????????# / | | """ #?????????????????????#!! " | | """""#?????????????????????#!! "g ###+###### | | """""#?????????????????????#!! = "h #????????? | | """ #?????????????????????# #gg#????????? | | #?????????????????????########### #????????? | | #??????????????????????????????##gg#????????? | | """ #???????????????????????###????#" h#????????? | | """ #??????######??########## ######g g#????????? | | #????? "??" g pg #????????? | | ####? BB "??" #????????? | | #####"#"## BB "??" #????????? | | %% % "??" #????????? | | "??" "@ #????????? | | "??" "" #????????? | | "??" #????????? | | ##"###"#"" BB "??" #????????? | | " =# BB "??" """ """ #????????? | | # # "??" """T""" #????????? | | # #?#######??########## ####### #????????? | | # " #???????????????????###?????? #????????? | | # """ #???????????????????????????? #????????? | | # """ #???????????????????????????? #????????? | | # " #???????????????????????????? #????????? | | # #???????????????????????????? ?????????? | | # #???????????????????????????????????????? | | ##########?????????????????????????s?s???????????? | | ???????????????????????????????????ss????????????? | | ?????????????????????????????????????????????????? | | ?????????????????????????????????????????????????? | | ?????????????????????????????????????????????????? | | ?????????????????????????????????????????????????? | | ?????????????????????????????????????????????????? | | ?????????????????????????????????????????????????? | | ?????????????????????????????????????????????????? | | ?????????????????????????????????????????????????? | | ?????????????????????????????????????????????????? | | ?????????????????????????????????????????????????? | +----------------------------------------------------+ Best States ------------- Heat Dissipation 83 Energy Generation 82 Energy Capacity 900 Matter Stores 300 Matter Capacity 300 Sight Range 16 Robot Scan Range 15 Terrain Scan Range 20 Terrain Scan Density 110 Jamming Range 16 Power Amplification 30 Corruption Block 40 Armor Coverage 225 Resistance: KI 30 Utility Shielding 33 Point Defense Rating 80 Phase Shifting 5 Evasion (%) 72 Targeting Accuracy 20 Recoil Reduction 2 Offensive Hacking 40 Item Schematics ----------------- Combat Drone Bay | -6/Data Miner | Free Lgt. Regenerative Plating | -6/Data Miner | Free Enh. Flexi-carbon Leg | -6/Data Miner | Free Adv. EM Disruption Field | -6/Data Miner | Free Hvy. Gatling Laser | -6/Data Miner | Free Myomer Leg | -6/Data Miner | Free Adv. Coolant Injector | -6/Data Miner | Free Dual-blade Saw | -6/Data Miner | Free Adv. Recoil Stabilizer | -6/Data Miner | Free Adv. Point Defense System | -6/Data Miner | Free Adv. Trap Scanner | -6/Data Miner | Free Gamma Rifle | -6/Data Miner | Free Assault Drone Bay | -5/Zhirov | Free Exp. Heat Sink | -5/Zhirov | Free Exp. Optical Array | -5/Zhirov | Free Imp. Arc Thrower | -5/Zhirov | Free Robot Schematics ------------------ X-62 Marksman | -6/Data Miner | Free E-15 Imp | -6/Data Miner | Free B-48 Gladiator | -6/Data Miner | Free G-50 Soldier | -6/Data Miner | Free M-36 Artificer | -6/Data Miner | Free B-60 Warrior | -6/Data Miner | Free Fabricated ------------ Nothing Repaired ---------- Nothing Alien Tech Used ----------------- Integrated Reactor Transdimensional Reconstructor Achievements -------------- More Power To You Challenges ------------ None Game ------ Seed HellfireSmallWings Manual? 0 Play Time 02:11:12 Cumulative 156.3 hours Start 2025.08.17 @ 00:40:50 End 2025.08.17 @ 03:05:58 Sessions 1 Manual Loads 0 Difficulty Rogue Special Mode None Game No. 259 Rogue 259 Adventurer 0 Explorer 0 Win Type 0 Total 3 Types 2/0/1/0/0/0/0/0/0/0 Lore% 76 Gallery% 72 Achievement% 52 Wizard Run 0 Options --------- Layout 1 ASCII 0 Keyboard 0 Movement Mouse Keybinds 0 Fullscreen 1 Font 24/Smallcaps Map View 50x35 Zoom Use 0% Tactical HUD 1 Map Filters NONE Filters NONE Steam 1 RUN: e194c8d1-4f89-4cbf-93f6-a6fa30c428a7